bitfinex-derivatives/quotes_SOLF0:USTF0_20250714
["timestamp","ask_amount","ask_price","bid_price","bid_amount"]
[1752495824310,3.41,167.15,167.11,3.49]
[1752495824614,3.41,167.14,167.1,3.49]
[1752495824815,526.391,167.16,167.14,3.49]
[1752495825007,9.391,167.16,167.15,3.49]
[1752495825212,5.9825,167.13,167.12,3.49]
[1752495825609,3.41,167.14,167.11,3.14851753]
[1752495825912,3.41,167.14,167.13,3.49]
[1752495827616,5.9819,167.15,167.11,3.19282125]
[1752495827811,9.5319,167.15,167.14,3.45]
[1752495828915,3.55,167.14,167.13,3.45]
[1752495834115,9.5321,167.14,167.13,3.45]
[1752495835015,9.5327,167.13,167.12,3.45]
[1752495835315,175.22,167.17,167.11,3.49430372]
[1752495835316,3.55,167.15,167.11,3.49430372]
[1752495836113,9.5328,167.12,167.11,3.49430372]
[1752495840532,9.5328,167.12,167.11,0.04430372]
[1752495841625,3.55,167.1,167.08,3.45]
[1752495841831,3.55,167.1,167.09,3.45]
[1752495842718,0.04289623,167.13,167.09,3.45]
[1752495842923,3.55,167.11,167.09,3.45]
[1752495843630,3.55,167.11,167.06,3.14851753]
[1752495843631,9.5334,167.11,167.1,3.45]
[1752495845029,3.55,167.1,167.09,3.45]
[1752495845226,6.02614513,167.12,167.08,3.14851753]
[1752495845525,0.04334513,167.12,167.1,3.45]
[1752495845721,3.55,167.16,167.1,6.59851753]
[1752495845925,0.04311847,167.13,167.11,3.45]
[1752495846827,0.04311847,167.13,167.11,9.433]
[1752495847034,0.04311847,167.13,167.12,3.45]
[1752495847332,6.02561847,167.13,167.12,3.45]
[1752495847533,3.59311847,167.13,167.12,3.45]
[1752495848035,9.57561847,167.13,167.12,3.45]
[1752495848225,3.59311847,167.13,167.12,3.45]
[1752495848421,0.04311847,167.13,167.12,3.45]
[1752495850027,9.57561847,167.13,167.12,3.45]
[1752495850525,3.59311847,167.13,167.12,3.45]
[1752495851329,9.57561847,167.13,167.12,3.45]
[1752495851834,5.9833,167.11,167.1,3.45]
[1752495852034,9.5333,167.11,167.1,3.45]
[1752495852438,5.9838,167.1,167.08,3.45]
[1752495852738,9.5338,167.1,167.09,3.45]
[1752495854228,5.9841,167.09,167.07,3.45]
[1752495854433,3.55,167.1,167.05,3.45]
[1752495854732,3.55,167.1,167.05,5.9851]
[1752495855039,3.55,167.1,167.06,3.45]
[1752495855237,3.55,167.1,167.07,3.45]
[1752495855433,9.5344,167.08,167.07,3.45]
[1752495856333,9.5344,167.08,167.04,5.9855]
[1752495856534,9.5347,167.07,167.04,5.9855]
[1752495856737,3.55,167.06,167.04,3.45]
[1752495856933,9.535,167.06,167.04,3.45]
[1752495857139,9.535,167.06,167.05,3.46]
[1752495857435,3.31,167.05,167.01,3.46]
[1752495857938,3.31,167.04,166.97,4.98663934]
[1752495858141,3.31,167.02,166.98,3.46]
[1752495858342,3.31,167.04,166.98,6.60851753]
[1752495858538,3.31,167.04,166.99,3.46]
[1752495858737,5.9866,167.02,166.99,3.46]
[1752495858938,9.2966,167.02,166.99,3.46]
[1752495859140,9.2966,167.02,166.99,5.9874]
[1752495859340,9.2966,167.02,166.97,3.14851753]
[1752495859341,3.31,167.01,166.97,3.14851753]
[1752495859537,3.31,167.0,166.95,3.14851753]
[1752495859737,3.19296838,167.03,166.93,522.08663934]
[1752495859738,5.9879,166.98,166.96,3.46]
[1752495860138,3.31,166.99,166.97,3.46]
[1752495860337,9.34114345,166.99,166.98,3.46]
[1752495860538,3.31,166.98,166.95,3.46]
[1752495861238,3.31,166.97,166.9,180.12663934]
[1752495861445,3.31,166.97,166.93,3.46]
[1752495861446,5.9888,166.96,166.93,3.46]
[1752495861742,3.31,166.97,166.94,3.46]
[1752495861938,3.34842787,166.96,166.95,3.46]
[1752495862138,3.31,166.95,166.94,3.46]
[1752495862539,9.2989,166.95,166.94,3.46]
[1752495862738,3.31,166.95,166.94,3.46]
[1752495863044,0.04549264,166.96,166.94,3.46]
[1752495863242,0.04549264,166.96,166.91,3.14851753]
[1752495863443,3.31,166.95,166.92,3.46]
[1752495863744,3.31,166.95,166.93,5.9896]
[1752495863940,3.31,166.95,166.94,3.46]
[1752495864143,3.31,166.95,166.92,3.46]
[1752495864445,0.04549264,166.96,166.94,3.46]
[1752495864640,9.2984,166.97,166.94,3.46]
[1752495864941,3.35452475,166.97,166.96,3.46]
[1752495865139,0.04452475,166.97,166.96,3.46]
[1752495865537,0.04452475,166.97,166.96,9.4486]
[1752495865834,0.04452475,166.97,166.96,3.46]
[1752495866241,0.04452475,166.97,166.96,9.4486]
[1752495866742,0.04452475,166.97,166.96,3.46]
[1752495867140,0.04452475,166.97,166.88,3.14851753]
[1752495867141,3.19304228,166.97,166.88,3.46]
[1752495867338,3.31,166.91,166.83,3.14851753]
[1752495867542,3.31,166.89,166.83,3.46]
[1752495868045,3.35100774,166.88,166.83,3.46]
[1752495868339,3.31,166.87,166.83,3.46]
[1752495868542,3.31,166.87,166.84,5.9926]
[1752495868745,3.31,166.87,166.86,3.46]
[1752495868939,3.35100774,166.88,166.86,3.46]
[1752495869339,3.31,166.87,166.84,3.46]
[1752495869540,3.31,166.87,166.77,3.46]
[1752495869743,3.14851753,166.85,166.75,3.46]
[1752495869943,3.31,166.84,166.78,3.46]
[1752495870140,3.35082895,166.84,166.78,3.46]
[1752495871039,3.14851753,166.83,166.78,3.46]
[1752495871237,3.31,166.82,166.79,3.46]
[1752495871442,5.994,166.81,166.77,5.9951]
[1752495871640,5.994,166.81,166.76,3.46]
[1752495871641,3.31,166.8,166.76,3.46]
[1752495872239,3.35039282,166.8,166.78,3.46]
[1752495872440,3.35039282,166.8,166.79,3.46]
[1752495872646,0.04039282,166.8,166.79,9.4547]
[1752495874143,3.31,166.87,166.85,3.46]
[1752495874343,3.31,166.87,166.86,3.46]
[1752495874643,3.31,166.87,166.81,5.9937]
[1752495874845,3.31,166.87,166.81,3.46]
[1752495875349,3.31,166.87,166.82,0.04212021]
[1752495875644,11.25326613,166.89,166.82,0.04212021]
[1752495875645,5.981,166.89,166.83,3.46]
[1752495876039,3.31,166.87,166.83,3.46]
[1752495876237,9.302,166.87,166.85,3.46]
[1752495877540,3.31,166.87,166.83,3.46]
[1752495877743,9.291,166.89,166.85,5.9922]
[1752495877940,5.981,166.89,166.85,5.27226613]
[1752495878146,9.291,166.89,166.87,3.46]
[1752495878746,517.38,166.94,166.88,3.46]
[1752495878946,3.31,166.92,166.9,3.46]
[1752495880050,3.31,166.92,166.91,3.46]
[1752495882954,9.3,166.92,166.91,3.46]
[1752495883141,3.31,166.92,166.91,3.46]
[1752495883546,520.69,166.94,166.9,3.46]
[1752495883751,3.31,166.94,166.91,11.26256613]
[1752495883954,3.31,166.94,166.93,3.46]
[1752495884151,3.31,167.0,166.96,5.9882]
[1752495884447,3.31,167.0,166.98,3.46]
[1752495884655,3.31,167.01,166.99,3.46]
[1752495885153,5.9871,167.0,166.99,3.46]
[1752495885348,176.5,167.04,166.99,3.46]
[1752495885545,3.31,167.0,166.99,3.46]
[1752495887054,3.38,167.02,166.98,0.03934768]
[1752495887248,3.38,167.01,167.0,3.59]
[1752495888250,9.3668,167.01,167.0,3.59]
[1752495888653,5.9875,166.99,166.98,0.03934768]
[1752495888955,9.3675,166.99,166.98,0.03934768]
[1752495891657,9.3675,166.99,166.98,3.62934768]
[1752495895154,9.3685,166.97,166.96,3.59]
[1752495896060,5.9879,166.98,166.95,3.59]
[1752495896262,0.04515648,167.0,166.96,5.27226613]
[1752495896457,0.04515648,167.0,166.97,3.59]
[1752495896662,0.04515648,167.0,166.99,3.59]
[1752495897060,5.9864,167.02,166.99,3.59]
[1752495897562,0.04211141,167.01,166.99,9.5773]
[1752495897757,0.04211141,167.01,167.0,3.59]
[1752495897964,6.02891141,167.01,167.0,3.59]
[1752495898565,0.04211141,167.01,167.0,8.86226613]
[1752495899264,0.04211141,167.01,167.0,14.84936613]
[1752495899864,5.981,167.05,167.03,5.9859]
[1752495900173,5.981,167.05,167.04,3.59]
[1752495900372,15.3463,167.05,167.04,3.59]
[1752495901062,9.3661,167.03,167.02,3.59]
[1752495901262,5.981,167.05,167.0,3.59]
[1752495901263,3.38,167.01,167.0,3.59]
[1752495901462,5.9871,167.0,166.97,5.27226613]
[1752495901663,9.3671,167.0,166.99,3.59]
[1752495901864,9.3671,167.0,166.99,3.63581176]
[1752495902769,9.3671,167.0,166.99,0.04581176]
[1752495903074,5.9871,167.0,166.99,3.63581176]
[1752495903777,9.3671,167.0,166.99,3.63581176]
[1752495904271,9.3671,167.0,166.99,0.04581176]
[1752495904778,9.3671,167.0,166.99,3.63581176]
[1752495905780,9.3671,167.0,166.99,0.04581176]
[1752495906187,9.3671,167.0,166.99,3.63581176]
[1752495907384,9.3671,167.0,166.99,0.04581176]
[1752495910078,9.3671,167.0,166.99,3.63581176]
[1752495910881,3.38,167.09,166.99,3.63581176]
[1752495911081,3.38,167.09,167.03,3.59]
[1752495911682,3.38,167.09,167.04,0.03946053]
[1752495911882,5.981,167.06,167.05,3.59]
[1752495912384,15.3463,167.06,167.05,3.59]
[1752495913682,9.3653,167.05,167.04,3.62946053]
[1752495914089,5.9853,167.05,167.04,3.62946053]
[1752495914882,3.38,167.09,167.04,5.29665606]
[1752495915087,5.981,167.08,167.05,3.59]
[1752495915586,3.38,167.07,167.06,3.59]
[1752495915785,3.38,167.07,167.04,0.03946053]
[1752495916291,5.9853,167.05,167.04,0.03946053]
[1752495916495,9.3653,167.05,167.04,0.03946053]
[1752495917383,9.3653,167.05,167.01,3.5]
[1752495917384,9.6364,167.02,167.01,3.5]
[1752495918988,5.9872,167.0,166.98,3.5]
[1752495919185,3.65,167.01,166.98,3.5]
[1752495919591,3.65,167.01,166.91,4.99725783]
[1752495919788,3.69174683,167.01,166.92,3.5]
[1752495919992,9.631,167.0,166.92,3.5]
[1752495920189,9.631,167.0,166.91,5.25719553]
[1752495920190,3.65,166.97,166.94,3.5]
[1752495920787,3.65,166.96,166.94,3.5]
[1752495920989,3.65,166.96,166.95,3.5]
[1752495921692,3.65,166.97,166.92,3.5]
[1752495921893,0.04281504,166.98,166.92,3.5]
[1752495921894,0.04281504,166.98,166.93,5.25719553]
[1752495922094,0.04281504,166.98,166.94,3.5]
[1752495923395,0.04281504,166.98,166.97,3.5]
[1752495924601,3.69281504,166.98,166.94,3.5]
[1752495924892,5.99,166.92,166.9,4.99725783]
[1752495925098,3.65,166.94,166.88,4.99725783]
[1752495925494,9.6398,166.93,166.89,9.4909]
[1752495925697,9.68318796,166.93,166.89,5.9909]
[1752495925898,3.69338796,166.93,166.91,3.5]
[1752495926098,9.64,166.92,166.91,3.5]
[1752495926302,3.65,166.92,166.91,3.5]
[1752495926492,3.65,166.92,166.86,3.5]
[1752495926696,3.65,166.9,166.88,3.5]
[1752495928094,3.65,166.9,166.89,3.5]
[1752495928703,3.65,166.9,166.83,3.5]
[1752495930401,3.65,166.9,166.88,3.5]
[1752495931104,3.65,166.9,166.89,3.5]
[1752495931304,0.04392631,166.91,166.86,5.25719553]
[1752495931506,0.04392631,166.91,166.89,5.991]
[1752495931695,3.65,166.92,166.9,3.5]
[1752495931896,5.981,166.94,166.91,3.5]
[1752495932104,0.04179472,166.92,166.91,3.5]
[1752495932803,0.04179472,166.92,166.91,9.4901]
[1752495935307,181.81719553,166.97,166.91,3.5]
[1752495935308,176.56,166.97,166.91,3.5]
[1752495935609,180.21,166.97,166.91,3.5]
[1752495935808,5.9888,166.96,166.91,3.5]
[1752495936010,9.6388,166.96,166.94,5.9893]
[1752495936204,3.65,166.96,166.95,3.5]
[1752495937108,523.501,167.0,166.95,3.5]
[1752495937301,3.65,166.97,166.94,0.04599994]
[1752495937500,5.9889,166.95,166.94,3.54599994]
[1752495937703,3.65,166.95,166.94,3.54599994]
[1752495938609,9.6389,166.95,166.94,3.54599994]
[1752495939906,9.6389,166.95,166.94,0.04599994]
[1752495941813,3.65,166.91,166.9,3.5]
[1752495942011,3.65,166.9,166.89,3.5]
[1752495943112,5.9906,166.91,166.89,3.5]
[1752495943113,0.04412902,166.91,166.89,3.5]
[1752495943313,0.04412902,166.91,166.9,3.5]
[1752495943610,0.04412902,166.91,166.9,9.4907]
[1752495943806,3.65,166.93,166.91,3.5]
[1752495944005,0.03974669,166.92,166.91,5.25719553]
[1752495944208,0.03974669,166.92,166.91,8.75719553]
[1752495944411,0.03974669,166.92,166.91,14.74749553]
[1752495945003,0.03974669,166.92,166.91,8.75719553]
[1752495945311,0.03974669,166.92,166.91,3.5]
[1752495945616,0.03974669,166.92,166.91,9.4903]
[1752495946206,0.03974669,166.92,166.91,3.5]
[1752495946603,0.03974669,166.92,166.91,8.75719553]
[1752495946810,0.03974669,166.92,166.91,14.74749553]
[1752495948714,0.03974669,166.92,166.91,3.5]
[1752495949313,9.43974669,166.92,166.91,3.5]
[1752495950917,3.41,166.91,166.89,3.45]
[1752495951212,3.41,166.91,166.9,3.45]
[1752495951912,0.03974669,166.92,166.87,5.25719553]
[1752495952112,0.03974669,166.92,166.9,3.45]
[1752495953218,0.03974669,166.92,166.91,3.45]
[1752495954717,0.03974669,166.92,166.91,14.69749553]
[1752495955109,5.981,166.96,166.91,5.25719553]
[1752495955318,5.981,166.96,166.95,9.4389]
[1752495955820,9.391,166.98,166.95,3.45]
[1752495956124,5.981,166.98,166.96,3.45]
[1752495956425,9.3992,166.95,166.93,3.45]
[1752495956622,9.3992,166.95,166.94,3.45]
[1752495958814,5.981,166.98,166.95,3.45]
[1752495959023,3.41,167.01,166.99,5.9871]
[1752495959219,3.41,167.06,167.01,3.45]
[1752495959420,3.41,167.08,167.03,3.45]
[1752495959820,5.9862,167.03,167.01,3.45]
[1752495960026,522.87719553,167.09,166.99,3.45]
[1752495960027,9.391,167.06,166.99,3.45]
[1752495960220,3.41,167.05,166.99,3.45]
[1752495960524,5.981,167.06,167.0,5.25719553]
[1752495960720,3.41,167.05,167.0,3.45]
[1752495960924,3.41,167.05,166.97,3.45]
[1752495961126,3.4520576,167.05,166.97,3.45]
[1752495961328,3.41,167.04,167.01,0.03893386]
[1752495961537,5.9864,167.02,167.01,0.03893386]
[1752495961731,3.41,167.04,167.02,3.45]
[1752495961933,3.41,167.04,167.03,3.45]
[1752495962334,182.0674576,167.05,167.03,3.45]
[1752495962527,185.4774576,167.05,167.04,3.45]
[1752495962827,185.4775576,167.05,167.02,3.45]
[1752495963030,185.4775576,167.05,167.03,3.45]
[1752495963231,182.0675576,167.05,167.02,3.45]
[1752495963432,0.0420576,167.05,167.02,5.25719553]
[1752495963633,0.0420576,167.05,167.04,3.45]
[1752495963829,9.4373576,167.05,167.04,3.45]
[1752495964540,3.4520576,167.05,167.04,3.45]
[1752495964741,3.4520576,167.05,167.02,3.45]
[1752495964939,3.41,167.04,167.02,3.45]
[1752495965739,3.41,167.04,167.03,3.45]
[1752495965935,3.41,167.04,167.01,5.29612939]
[1752495966138,3.41,167.04,167.01,0.03893386]
[1752495966938,3.41,167.02,167.01,0.03893386]
[1752495967532,3.41,167.02,167.01,3.48893386]
[1752495967736,3.4520576,167.05,167.02,3.45]
[1752495967938,3.4520576,167.05,167.03,3.45]
[1752495968243,3.41,167.04,167.01,0.03893386]
[1752495968440,9.3964,167.02,167.01,0.03893386]
[1752495969146,0.0420576,167.05,167.01,0.03893386]
[1752495969147,3.41,167.04,167.01,0.03893386]
[1752495969342,3.41,167.04,167.03,3.45]
[1752495969736,9.4374576,167.05,167.03,3.45]
[1752495970742,9.3957,167.04,167.03,3.45]
[1752495971842,9.3957,167.04,167.01,3.48893386]
[1752495972042,9.3957,167.04,167.02,3.45]
[1752495972444,9.3957,167.04,167.03,3.45]
[1752495972644,3.41,167.04,167.03,3.45]
[1752495973345,3.4520576,167.05,167.04,3.45]
[1752495974547,0.0420576,167.05,167.04,9.4357]
[1752495975348,0.0420576,167.05,167.04,3.45]
[1752495975946,0.0420576,167.05,167.02,3.45]
[1752495976151,3.41,167.03,167.02,3.45]
[1752495976345,3.4520576,167.05,167.02,3.45]
[1752495976652,3.41,167.04,167.03,3.45]
[1752495977550,9.3957,167.04,167.03,3.45]
[1752495977947,3.41,167.04,167.03,3.45]
[1752495978849,9.3957,167.04,167.03,3.45]
[1752495979843,184.61719553,167.04,167.01,0.03893386]
[1752495980049,3.62,167.03,167.01,0.03893386]
[1752495980451,8.87719553,167.02,166.93,5.25719553]
[1752495980651,3.62,167.01,166.95,3.64]
[1752495980846,5.9877,166.99,166.95,3.64]
[1752495981054,3.62,166.97,166.95,3.64]
[1752495981752,3.62,166.98,166.91,5.25719553]
[1752495981952,3.62,166.98,166.96,3.64]
[1752495982153,3.62,166.97,166.94,3.64]
[1752495982354,3.62,166.96,166.94,3.64]
[1752495982554,3.62,166.96,166.95,3.64]
[1752495982945,3.62,166.95,166.94,3.64]
[1752495983150,3.62,166.95,166.89,3.64]
[1752495983346,5.9895,166.94,166.89,3.64]
[1752495983551,3.62,166.93,166.89,3.64]
[1752495983854,3.65833914,166.93,166.92,3.64]
[1752495984051,3.62,166.92,166.91,3.64]
[1752495984251,3.62,166.91,166.9,3.68327084]
[1752495985055,3.62,166.92,166.9,3.68327084]
[1752495985358,3.62,166.91,166.9,3.68327084]
[1752495986658,3.62,166.92,166.91,3.64]
[1752495987456,3.65833914,166.93,166.92,3.64]
[1752495987646,0.03833914,166.93,166.92,3.64]
[1752495989059,3.62,166.92,166.91,3.64]
[1752495990460,0.03833914,166.93,166.91,3.64]
[1752495990762,3.65833914,166.93,166.92,3.64]
[1752495992462,3.62,166.91,166.9,0.04327084]
[1752495993154,3.62,166.91,166.9,3.68327084]
[1752495993664,0.03833914,166.93,166.91,3.64]
[1752495993857,3.62,166.92,166.91,3.64]
[1752495995161,3.62,166.92,166.91,9.6304]
[1752495995360,0.03833914,166.93,166.92,3.64]
[1752495995554,3.65833914,166.93,166.92,3.64]
[1752495995752,3.62,166.92,166.91,3.64]
[1752495996159,3.62,166.91,166.9,3.68327084]
[1752495997065,3.62,166.91,166.9,0.04327084]
[1752495997256,9.6104,166.91,166.9,0.04327084]
[1752495999863,3.62,166.91,166.9,0.04327084]
[1752496000268,9.6104,166.91,166.9,0.04327084]
[1752496000457,3.62,166.91,166.9,3.68327084]
[1752496001769,3.62,166.91,166.9,0.04327084]
[1752496001967,9.6104,166.91,166.9,0.04327084]
[1752496002167,3.62,166.91,166.9,0.04327084]
[1752496002960,9.6104,166.91,166.9,0.04327084]
[1752496005466,3.62,166.91,166.85,3.64]
[1752496005769,3.62,166.89,166.85,3.64]
[1752496006161,5.25719553,166.91,166.86,3.64]
[1752496006370,3.62,166.88,166.86,3.64]
[1752496006566,3.62,166.87,166.86,3.64]
[1752496011471,3.61119988,166.9,166.86,3.64]
[1752496011773,3.61119988,166.9,166.89,3.41]
[1752496012172,0.04119988,166.9,166.89,9.4011]
[1752496017979,3.61119988,166.9,166.89,3.41]
[1752496018274,0.04119988,166.9,166.89,3.41]
[1752496018478,0.04119988,166.9,166.89,9.4011]
[1752496019179,3.57,166.97,166.94,3.41]
[1752496019377,3.57,166.96,166.95,3.41]
[1752496019776,523.6275,166.99,166.95,3.41]
[1752496020082,3.57,166.98,166.95,3.41]
[1752496020274,3.57,166.97,166.96,3.41]
[1752496020771,3.57,166.97,166.94,3.41]
[1752496020976,3.57,166.97,166.95,3.41]
[1752496021177,3.57,166.96,166.95,3.41]
[1752496022176,3.57,166.96,166.9,3.41]
[1752496022677,5.9891,166.95,166.91,5.9901]
[1752496022878,3.57,166.94,166.92,3.41]
[1752496023180,3.57,166.93,166.92,9.3999]
[1752496023376,0.04228692,166.95,166.92,9.3999]
[1752496023577,0.04228692,166.95,166.93,3.41]
[1752496023778,0.04228692,166.95,166.94,9.3993]
[1752496027580,3.61228692,166.95,166.94,3.41]
[1752496028878,3.61228692,166.95,166.93,3.41]
[1752496029078,3.61228692,166.95,166.94,3.41]
[1752496029382,3.61228692,166.95,166.92,3.41]
[1752496029583,9.60148692,166.95,166.92,3.41]
[1752496029778,6.03148692,166.95,166.92,3.41]
[1752496029987,3.57,166.93,166.92,3.41]
[1752496030378,5.9893,166.94,166.9,5.9906]
[1752496030680,3.57,166.92,166.91,3.41]
[1752496031682,3.57,166.92,166.86,3.41]
[1752496032473,0.04187263,166.91,166.86,3.41]
[1752496032681,0.04187263,166.91,166.9,9.4007]
[1752496035386,3.61187263,166.91,166.85,5.0080997]
[1752496035683,3.57,166.9,166.89,3.41]
[1752496036180,3.57,166.9,166.85,3.41]
[1752496036384,3.57,166.89,166.88,5.9914]
[1752496036585,3.57,166.89,166.88,9.4014]
[1752496036985,9.37839529,166.91,166.88,9.4014]
[1752496037180,9.37839529,166.91,166.89,3.59]
[1752496037181,3.35,166.9,166.89,3.59]
[1752496037685,3.35,166.89,166.88,3.59]
[1752496038379,3.35,166.89,166.88,9.5814]
[1752496038585,3.35,166.89,166.88,3.59]
[1752496039484,3.38779529,166.91,166.86,3.59]
[1752496039687,0.03779529,166.91,166.88,3.59]
[1752496039889,3.38779529,166.91,166.88,3.59]
[1752496040584,3.35,166.9,166.89,3.59]
[1752496042690,3.35,166.89,166.88,3.59]
[1752496042885,3.35,166.89,166.86,3.59]
[1752496043082,3.35,166.89,166.84,3.59]
[1752496043283,5.9917,166.88,166.82,3.59]
[1752496043589,3.35,166.86,166.85,3.59]
[1752496047696,3.35,166.85,166.84,3.59]
[1752496047901,3.35,166.85,166.8,3.59]
[1752496048403,3.35,166.84,166.82,3.59]
[1752496048597,3.3914158,166.84,166.76,5.0080997]
[1752496048802,3.35,166.83,166.81,3.59]
[1752496049003,3.35,166.83,166.8,3.59]
[1752496049199,9.3434,166.83,166.8,9.5843]
[1752496049398,5.9934,166.83,166.8,9.5843]
[1752496049599,3.35,166.81,166.8,9.5843]
[1752496050908,3.35,166.83,166.8,9.5843]
[1752496051104,3.35,166.82,166.81,3.59]
[1752496052500,3.35,166.82,166.81,9.584]
[1752496052704,0.0414158,166.84,166.8,3.15936006]
[1752496052896,3.35,166.83,166.82,9.5833]
[1752496053306,3.35,166.82,166.79,3.59]
[1752496054105,3.39314541,166.82,166.79,3.59]
[1752496054306,0.04314541,166.82,166.79,3.59]
[1752496054711,0.04314541,166.82,166.81,5.9938]
[1752496055108,0.04314541,166.82,166.81,9.5838]
[1752496056798,3.39314541,166.82,166.81,9.5838]
[1752496061109,0.04314541,166.82,166.81,9.5838]
[1752496061806,0.04314541,166.82,166.81,12.74316006]
[1752496062004,0.04314541,166.82,166.81,9.5838]
[1752496065807,0.04314541,166.82,166.81,12.74316006]
[1752496067016,3.38,166.88,166.87,9.3918]
[1752496067214,9.371,166.9,166.87,3.4]
[1752496067412,3.38,166.89,166.88,3.4]
[1752496068313,3.38,166.89,166.88,9.3915]
[1752496069215,3.38,166.89,166.88,3.4]
[1752496069916,3.38,166.89,166.88,9.3915]
[1752496070515,3.38,166.92,166.89,3.4]
[1752496071118,5.9902,166.92,166.89,3.4]
[1752496071421,3.38,166.91,166.89,3.4]
[1752496072513,3.38,166.9,166.89,3.4]
[1752496073023,3.38,166.9,166.88,3.4]
[1752496073822,3.38,166.89,166.88,3.4]
[1752496074722,3.38,166.89,166.87,0.0457718]
[1752496075119,9.3712,166.89,166.87,0.0457718]
[1752496075616,3.38,166.88,166.87,0.0457718]
[1752496075822,5.9915,166.88,166.87,0.0457718]
[1752496076013,9.3715,166.88,166.87,0.0457718]
[1752496076720,3.38,166.86,166.84,3.4]
[1752496078122,3.38,166.86,166.85,9.3925]
[1752496078318,3.38,166.86,166.85,3.4]
[1752496078519,5.9926,166.85,166.81,3.15936006]
[1752496078724,3.38,166.85,166.84,3.4]
[1752496079118,9.3728,166.85,166.84,3.4]
[1752496079515,5.9928,166.85,166.81,3.15936006]
[1752496079823,3.38,166.84,166.83,3.4]
[1752496080024,9.3729,166.84,166.83,3.4]
[1752496080622,3.38,166.83,166.82,3.4]
[1752496081123,3.38,166.82,166.81,3.4]
[1752496083119,3.38,166.82,166.81,9.394]
[1752496083518,0.04189737,166.83,166.81,5.994]
[1752496083721,3.42189737,166.83,166.82,3.4]
[1752496085320,0.04189737,166.83,166.82,3.4]
[1752496086225,0.04189737,166.83,166.82,9.3936]
[1752496086730,0.04189737,166.83,166.82,12.55296006]
[1752496087426,0.04189737,166.83,166.82,3.4]
[1752496087631,3.42189737,166.83,166.82,3.4]
[1752496088332,0.04189737,166.83,166.82,9.3936]
[1752496090234,0.04189737,166.83,166.82,12.55296006]
[1752496096745,3.42189737,166.83,166.82,9.3936]
[1752496097138,0.04189737,166.83,166.82,9.3936]
[1752496100849,0.04189737,166.83,166.82,3.4]
[1752496101040,3.41189737,166.83,166.82,3.4]
[1752496101242,3.41189737,166.83,166.8,3.43]
[1752496101443,3.37,166.81,166.8,3.43]
[1752496104160,0.04189737,166.83,166.78,3.43]
[1752496104461,0.04189737,166.83,166.8,3.43]
[1752496104860,3.37,166.84,166.8,3.43]
[1752496105152,0.04563407,166.83,166.8,3.43]
[1752496105756,0.04563407,166.83,166.82,9.4236]
[1752496113065,3.41563407,166.83,166.82,9.4236]
[1752496113270,3.41563407,166.83,166.82,3.43]
[1752496113657,9.40893407,166.83,166.82,3.43]
[1752496113865,3.37,166.82,166.81,3.43]
[1752496114262,5.9936,166.82,166.81,3.43]